{"text_format":"1","workbook":"xlsx","n_sheets":21,"sheets":["PREAMBLE ","Evaluation criteria","INDEX","Sun Block","Safety Equip","Head Protection","1Piece Overall","2Piece Overall","Thermal Jackets","Dust Coats","Shirts","Rain Wear","Reflective Vests","Eye Protection","Safety Boots","Socks","Gloves","Hearing Protection","Respirators","Summary","CPA FORMULA"],"not_rendered":{"charts":0,"images":2,"macros":1,"external_links":0,"defined_names":0,"comments":1,"pivot_tables":0},"unopened":[],"bounds":{"document_bytes":16777216,"sheet_cells":100000,"rows_first":2000,"rows_last":500,"rows_between":2000,"halvings":0,"cell_chars":16384,"cell_head_chars":4096},"cells_cut":0,"cells_raw":0,"read":"whole","date_system":"1900"}

{"sheet":"PREAMBLE ","index":0,"n_rows":40,"n_cols":4,"rows_kept":40,"cut":false,"hidden":false,"merged":[[39,1,39,9],[23,0,24,0],[25,0,27,0],[28,0,29,0],[30,0,33,0],[35,0,36,0],[25,1,27,9],[28,1,29,9],[30,1,33,9],[34,1,34,9],[35,1,36,9],[37,1,37,9],[38,1,38,9],[23,1,24,9],[5,3,8,8],[9,3,13,8],[14,3,17,8],[21,1,22,9],[21,0,22,0],[14,1,17,2],[5,0,8,0],[9,0,13,0],[14,0,17,0],[5,1,8,2],[9,1,13,2],[19,0,19,4]]}
["Enquiry No."]
["Tenderer's Name:"]
[]
[]
[null,"NOTES"]
[1,"Manual input required",null,"This GREEN shading is used for cells where DATA ENTRY/INPUT is required from the Tenderer.  The Tenderer must complete the information in these GREEN shaded cells."]
[]
[]
[]
[2,null,null,"This GREY - PLEASE REFRAIN from tampering with ANY other cells contained in this workbook as it may affect Eskom's standard formulae and lead to data integrity issues."]
[]
[]
[]
[]
[3,null,null,"The pricing schedule may not be changed or altered. Tenderer(s) to populate prices for the quantities specified in the pricing schedule in the columns."]
[]
[]
[]
[]
[" PREAMBLE TO PRICE SCHEDULE "]
[]
[1,"The Price Schedule provides the basis of valuation, price adjustment (CPA) formulae and information for general contract progress monitoring. "]
[]
[2,"The Prices are the amounts stated in the price column of the Price Schedule.  Where an estimated quantity is stated for an item in the Price Schedule, the Price is calculated by multiplying the estimated quantity by the rate."]
[]
[3,"If the Supplier has decided not to identify a particular item in the price schedule at the time of tender the cost to the Supplier of doing the work is assumed to be included in, or spread across, the other Prices and rates in the price schedule in order to fulfil the obligation to Provide the Goods and Services for the tendered total of the Prices.  "]
[]
[]
[4,"The total of the prices must include for all direct and indirect costs, overheads, profit on costs, risks, liabilities, obligations, etc. relative to the contract."]
[]
[5,"The Tenderer must allow for all necessary costs to complete the pricing shedule as required in terms of the specifications, technical scope and conditions of contract whether expressly stated or not in the Price Schedules. The Tenderer must provide any breakdown of prices as may be required for specific items not detailed in the Price Schedule prior to or after contract award."]
[]
[]
[]
[6,"The Prices quoted by the supplier should be exclusive and inclusive of VAT."]
[7,"All worksheets in this Pricing Schedule are to be submitted. Tenderers are not allowed to ommit a worksheet. If specifically CPA worksheets is ommited, it will be deemed that  CPA is not applicable to this tender."]
[]
[8,"Only Light Green highlighted cells are to be inputted by the Tenderer."]
[9,"Dark Green highlighted cells are formulae based and do not require any inputs."]
[10,"There will be no inputting in Grey highlighted cells."]

{"sheet":"Evaluation criteria","index":1,"n_rows":47,"n_cols":14,"rows_kept":47,"cut":false,"hidden":false,"merged":[[22,2,22,3],[5,2,7,2],[5,3,7,3],[5,5,7,5],[5,6,7,6],[8,2,14,2],[8,4,14,4],[15,2,19,2],[15,4,19,4],[20,9,21,9],[20,11,21,11],[20,12,21,12],[30,9,31,9],[30,11,31,11],[30,12,31,12],[40,9,41,9],[40,11,41,11],[40,12,41,12]]}
[]
[]
[]
[null,null,"Evaluation Criteria","Eskom PPE Specification Compliance","Weighted  Score","Score Breakdown","RESULTS"]
[]
[null,null,"Sample Inspection (Bidder to prepare sample for evaluations)","Sample to comply with Eskom PPE Specification 240-44175132.","      ","Compliance to PPE Specification per product",60,"As per BOQ Category ABC"]
[null,null,null,null,0.6]
[]
[null,null,"Stock keeping - warehousing","Proper warehouse for products.",0.2,"Warehouse or storeroom with proper shelving and enough space and ventilation system - 20% "]
[null,null,null,"Letter of support from Manufactures will suffice for distributors with no warehouse.",null,"(at least 20 m2 )"]
[]
[]
[null,null,null,null,null,"Warehouse or storeroom –without proper shelving and enough space and ventilations -   10%                (at least 20 m2)",20]
[]
[null,null,null,null,null,"No warehouse or storeroom – 0%"]
[null,null,"Transport","Proof of ownership on Vehicle.  ",0.2,"1* Bakkie    - 10% "]
[null,null,null,null,null,"2*Bakkie    - 20%"]
[null,null,null,"OR"]
[null,null,null,null,null,null,20]
[null,null,null,"Hire Letter from Bona Fide hiring company to be included if hired.",null,null,null,null,"CATEGORY A"]
[null,null,null,null,null,null,null,null,null,"MARK WITH AN (X) ITEM TENDERING FOR","MANUFACTURE OR DISTRIBUTOR","LETTER OF SUPPORT FROM MANUFACTURE TO SUPPLY PRODUCTS (ONLY FOR DISTRIBUTORS) YES/NO","PRODUCT SPECIFICATION SHEET( e.g. SANS, EN, CE ANSI, Material Data Sheet, Specification Sheets)"]
[null,null,"Total ",null,1,null,{"$f":"SUM(G6:G21)","v":100},null,"ITEM DESCRIPTION",null,"(M/D)"]
[null,null,"Minimum Threshold for Qualifications",null,0.7,null,null,null,"HEAD PROTECTION","X","D","YES - QUALITY SUPPLY MANUFACTURE","SANS 1397:2003"]
[null,null,null,null,null,null,null,null,"RAIN WEAR","X","D","YES - QUALITY SUPPLY MANUFACTURE","SANS 1397:2003"]
[null,null,null,null,null,null,null,null,"REFLECTIVE VESTS","X","D","YES - QUALITY SUPPLY MANUFACTURE","SANS 1397:2003"]
[null,null,null,null,null,null,null,null,"EYE PROTECTION","X","D","YES - QUALITY SUPPLY MANUFACTURE","SANS 1397:2003"]
[null,null,null,null,null,null,null,null,"SUN BLOCK","X","D","YES - QUALITY SUPPLY MANUFACTURE","ISO 24443 IN VITRO TEST RESULTS",100]
[]
[]
[null,null,null,null,null,null,null,null,"CATEGORY B"]
[null,null,null,null,null,null,null,null,null,"MARK WITH AN (X) ITEM TENDERING FOR","MANUFACTURE OR DISTRIBUTOR","LETTER OF SUPPORT FROM MANUFACTURE TO SUPPLY PRODUCTS (ONLY FOR DISTRIBUTORS) YES/NO","PRODUCT SPECIFICATION SHEET( e.g. SANS, EN, CE ANSI, Material Data Sheet, Specification Sheets)"]
[null,null,null,null,null,null,null,null,"ITEM DESCRIPTION",null,"(M/D)"]
[null,null,null,null,null,null,null,null,"ONE PIECE OVERALL","X","D","YES","SANS 434:2018"]
[null,null,null,null,null,null,null,null,"TWO PIECE OVERALL","X","D","YES","SANS 434:2018"]
[null,null,null,null,null,null,null,null,"THERMAL JACKETS","X","D","YES","SANS 434:2018"]
[null,null,null,null,null,null,null,null,"DUST COAST","X","D","YES","SANS 434:2018"]
[null,null,null,null,null,null,null,null,"SHIRTS (MEN/WOMEN)","X","D","YES","SANS 434:2018"]
[null,null,null,null,null,null,null,null,"SAFETY EQUIPMENT","X","D","YES","SANS 50361:2003",100]
[]
[null,null,null,null,null,null,null,null,"CATEGORY C"]
[null,null,null,null,null,null,null,null,null,"MARK WITH AN (X) ITEM TENDERING FOR","MANUFACTURE OR DISTRIBUTOR","LETTER OF SUPPORT FROM MANUFACTURE TO SUPPLY PRODUCTS (ONLY FOR DISTRIBUTORS) YES/NO","PRODUCT SPECIFICATION SHEET( e.g. SANS, EN, CE ANSI, Material Data Sheet, Specification Sheets)"]
[null,null,null,null,null,null,null,null,"ITEM DESCRIPTION",null,"(M/D)"]
[null,null,null,null,null,null,null,null,"SATETY BOOTS/SHOES AND GUMBOOTS ","X","D","YES BBF MANUFATURE","SANS 20345:2014"]
[null,null,null,null,null,null,null,null,"SOCKS","X","D","SUPPLIED","Certificates"]
[null,null,null,null,null,null,null,null,"GLOVES","X","D","YES - PROGLOVE MANUFATURE","Certificates"]
[null,null,null,null,null,null,null,null,"HEARING PROTECTION","X","D","SUPPLIED","Certificates"]
[null,null,null,null,null,null,null,null,"RESPIRATORS","X","D",null,"Certificates",100]

{"sheet":"INDEX","index":2,"n_rows":19,"n_cols":8,"rows_kept":19,"cut":false,"hidden":false,"merged":[[18,1,18,2],[14,1,14,2],[15,1,15,2],[13,1,13,2],[0,0,0,1],[6,1,6,2],[7,1,7,2],[8,1,8,2],[9,1,9,2],[12,1,12,2],[10,1,10,2],[16,1,16,2],[17,1,17,2],[0,3,0,5],[2,1,2,2],[3,1,3,2],[4,1,4,2],[5,1,5,2],[1,0,1,5]]}
[null,null,null,"PRICING SCHEDULE"]
["NWOU PPE CONTRACT"]
[1,"HEAD PROTECTION",null,null,null,null,null,"CATEGORY A"]
[2,"ONE PIECE OVERALL",null,null,null,null,null,"CATEGORY B"]
[3,"TWO PIECE OVERALL",null,null,null,null,null,"CATEGORY C"]
[4,"THERMAL JACKETS"]
[5,"DUST COATS"]
[6,"SHIRTS (MEN/WOMEN)"]
[7,"RAIN WEAR"]
[8,"REFLECTIVE VESTS"]
[9,"EYE PROTECTION"]
[10,"SATETY BOOTS/SHOES AND GUMBOOTS"]
[11,"SOCKS"]
[12,"GLOVES"]
[13,"HEARING PROTECTION"]
[14,"RESPIRATORS"]
[15,"Safety Equipment"]
[16,"Sun Block products"]
[17,"Summary"]

{"sheet":"Sun Block","index":3,"n_rows":15,"n_cols":7,"rows_kept":15,"cut":false,"hidden":false,"merged":[[0,2,1,2],[0,3,1,3],[0,5,1,5],[0,6,1,6]]}
[null,null,"ITEM DESCRIPTION","UNIT MEASURE","Quantity","Item price","Price"]
["NO","SAP MATERIAL NUMBER"]
[1,null,"Sun block SPF 36 (150ml)","EA",null,null,{"$f":"SUM(E3*F3)","v":0}]
[2,null,"Sun block SPF 42 (150ml)","EA",null,null,{"$f":"SUM(E4*F4)","v":0}]
[3,null,"Lip Balm SPF 16","EA",null,null,0]
[4,null,"Mediderm plus 500g","EA",null,null,0]
[5,null,"Dermagaurd 250ml","EA",null,null,0]
[6,null,"Mycota foot powder","EA",null,null,0]
[7,null,"Peachful sleep stick (insect repellant )","EA",null,null,0]
[8,null,"Peachful sleep aerosol (insect repellant )","EA",null,null,0]
[9,null,"Bayticol spray (tick repellant )","EA",null,null,0]
[10,null,"Snake repel 250ml (snake repellant )","EA",null,null,0]
[11,null,null,null,null,null,0]
[12,null,null,null,null,null,0]
[null,null,null,null,{"$f":"SUM(E3:E14)","v":0},{"$f":"SUM(F3:F12)","v":0},{"$f":"SUM(G3:G12)","v":0}]

{"sheet":"Safety Equip","index":4,"n_rows":16,"n_cols":7,"rows_kept":16,"cut":false,"hidden":false,"merged":[[0,2,1,2],[0,3,1,3],[0,5,1,5],[0,6,1,6]]}
[null,null,"ITEM DESCRIPTION","UNIT MEASURE","Quantity","Item price","Price"]
["NO","SAP MATERIAL NUMBER"]
[1,null,"ESKOM FLAS SUIT CL 55 C/W VENTILATED HOOD XL","EA",null,null,{"$f":"SUM(E3*F3)","v":0}]
[2,null,"ESKOM FLASH SUIT CL 55 C/W VENTHOOD 2XL","EA",null,null,{"$f":"SUM(E4*F4)","v":0}]
[3,null,"ESKOM FLASH SUITS CL 55 C/W VENTILATED HOOD L","EA",null,null,0]
[4,null,"Eskom Live Work FAS Kit Complete","EA",null,null,0]
[5,null,"FALL ARREST KIT LIVE WORK","EA",null,null,0]
[null,null,"FALL ARREST RESCUE KIT LIVE WORK","EA",null,null,0]
[6,null,"Chainsaw gloves","EA",null,null,0]
[7,null,"Chainsaw jackets","EA",null,null,0]
[8,null,"CHAINSAW PPE SIZE 2XL complete kit","EA",null,null,0]
[9,null,"CHAINSAW PPE SIZE 4XL complete kit","EA",null,null,0]
[10,null,"Chainsaw trousers","EA",null,null,0]
[11,null,"Kidney Belt","EA",null,null,0]
[12,null,"Bee suites","EA",null,null,0]
[null,null,null,null,{"$f":"SUM(E3:E15)","v":0},{"$f":"SUM(F3:F13)","v":0},{"$f":"SUM(G3:G13)","v":0}]

{"sheet":"Head Protection","index":5,"n_rows":11,"n_cols":7,"rows_kept":11,"cut":false,"hidden":false,"merged":[[0,5,1,5],[0,2,1,2],[0,3,1,3],[0,6,1,6]]}
[null,null,"ITEM DESCRIPTION","UNIT MEASURE","Quantity","Item price","Price"]
["NO","SAP MATERIAL NUMBER"]
[1,222349,"HAT:SOFT BUSH;SMALL; 56;NAVY BLUE  ","EA",null,null,{"$f":"SUM(E3*F3)","v":0}]
[2,222351,"HAT:SOFT BUSH;MEDIUM; 57;NAVY BLUE ","EA",null,null,{"$f":"SUM(E4*F4)","v":0}]
[3,222352,"HAT:SOFT BUSH;LARGE; 58;NAVY BLUE ","EA",null,null,0]
[4,222353,"HAT:SOFT BUSH;X-LARGE; 59;NAVY BLUE ","EA",null,null,0]
[5,565363,"HAT:SOFT BUSH;XX-LARGE; 60;NAVY BLUE ","EA",null,null,0]
[6,552179,"HARD HAT FOR WORKING FROM HEIGHT INCLUDING 3 POINT CHIN STRAP-HELEMT SAFETY ADJUST CHIN","EA",null,null,0]
[7,565828,"VISOR:SUN BRIM FOR SAFETY HAT ","EA",null,null,0]
[8,566181,"NET:HAIR;LG 320 MM;280 MM;MTRL COTTON ","EA",null,null,0]
[null,null,null,null,{"$f":"SUM(E3:E10)","v":0},0,{"$f":"SUM(G3:G10)","v":0}]

{"sheet":"1Piece Overall","index":6,"n_rows":61,"n_cols":7,"rows_kept":61,"cut":false,"hidden":false,"merged":[[0,6,1,6],[0,1,1,1],[0,2,1,2],[0,3,1,3],[0,5,1,5]]}
[null,"SAP MATERIAL NUMBER","ITEM DESCRIPTION","UNIT MEASURE","Quantity","Item price","Price"]
["NO"]
[1,222529,"OVERALL:ARTISAN BOILER SUIT ;77 CM","EA",null,null,{"$f":"SUM(E3*F3)","v":0}]
[2,222530,"OVERALL:ARTISAN BOILER SUIT ;82 CM","EA",null,null,{"$f":"SUM(E4*F4)","v":0}]
[3,222531,"OVERALL:ARTISAN BOILER SUIT ;87 CM","EA",null,null,0]
[4,222533,"OVERALL:ARTISAN BOILER SUIT ;92 CM","EA",null,null,0]
[5,222534,"OVERALL:ARTISAN BOILER SUIT ;97 CM","EA",null,null,0]
[6,566588,"OVERALL:ARTISAN BOILER SUIT ;102 CM","EA",null,null,0]
[7,566591,"OVERALL:ARTISAN BOILER SUIT ;107 CM","EA",null,null,0]
[8,566598,"OVERALL:ARTISAN BOILER SUIT ;112 CM","EA",null,null,0]
[9,566589,"OVERALL:ARTISAN BOILER SUIT ;117 CM","EA",null,null,0]
[10,566599,"OVERALL:ARTISAN BOILER SUIT ;122 CM","EA",null,null,0]
[11,566593,"OVERALL:ARTISAN BOILER SUIT ;127 CM","EA",null,null,0]
[12,566592,"OVERALL:ARTISAN BOILER SUIT ;132 CM","EA",null,null,0]
[13,566590,"OVERALL:ARTISAN BOILER SUIT ;137 CM","EA",null,null,0]
[14,566595,"OVERALL:ARTISAN BOILER SUIT ;142 CM","EA",null,null,0]
[15,566597,"OVERALL:ARTISAN BOILER SUIT ;147 CM","EA",null,null,0]
[16,566594,"OVERALL:ARTISAN BOILER SUIT ;152 CM","EA",null,null,0]
[17,566596,"OVERALL:ARTISAN BOILER SUIT ;157 CM","EA",null,null,0]
[18,566600,"OVERALL:ACID/ALKALI ;77 CM","EA",null,null,0]
[19,566601,"OVERALL:ACID/ALKALI ;82 CM","EA",null,null,0]
[20,566602,"OVERALL:ACID/ALKALI ;87 CM","EA",null,null,0]
[21,566603,"OVERALL:ACID/ALKALI ;92 CM","EA",null,null,0]
[22,566604,"OVERALL:ACID/ALKALI ;97 CM","EA",null,null,0]
[23,566605,"OVERALL:ACID/ALKALI ;102 CM","EA",null,null,0]
[24,566606,"OVERALL:ACID/ALKALI ;107 CM","EA",null,null,0]
[25,566607,"OVERALL:ACID/ALKALI ;112 CM","EA",null,null,0]
[26,566608,"OVERALL:ACID/ALKALI ;117 CM","EA",null,null,0]
[27,566609,"OVERALL:ACID/ALKALI ;122 CM","EA",null,null,0]
[28,566610,"OVERALL:ACID/ALKALI ;127 CM","EA",null,null,0]
[29,566611,"OVERALL:ACID/ALKALI ;132 CM","EA",null,null,0]
[30,566612,"OVERALL:ACID/ALKALI ;137 CM","EA",null,null,0]
[31,566613,"OVERALL:ACID/ALKALI ;142 CM","EA",null,null,0]
[32,566614,"OVERALL:ACID/ALKALI ;147 CM","EA",null,null,0]
[33,566615,"OVERALL:ACID/ALKALI ;152 CM","EA",null,null,0]
[34,566616,"OVERALL:ACID/ALKALI ;157 CM","EA",null,null,0]
[35,565716,"SUIT CHEM PROT:S;YELLOW;ACID PROOF","EA",null,null,0]
[36,565717,"SUIT CHEM PROT:M;YELLOW;ACID PROOF","EA",null,null,0]
[37,565718,"SUIT CHEM PROT:L;YELLOW;ACID PROOF","EA",null,null,0]
[38,565719,"SUIT CHEM PROT:XL;YELLOW;ACID PROOF","EA",null,null,0]
[39,565721,"SUIT CHEM PROT:XXL;YELLOW;ACID PROOF","EA",null,null,0]
[40,565720,"SUIT CHEM PROT:XXXL;YELLOW;ACID PROOF","EA",null,null,0]
[41,565722,"SUIT CHEM PROT:4XL;YELLOW;ACID PROOF","EA",null,null,0]
[42,642821,"OVERALL:ACID RESIST ;77 ;POLY COTTON","EA",null,null,0]
[43,642822,"OVERALL:ACID RESIST ;82 ;POLY COTTON","EA",null,null,0]
[44,642823,"OVERALL:ACID RESIST ;87 ;POLY COTTON","EA",null,null,0]
[45,642824,"OVERALL:ACID RESIST ;92 ;POLY COTTON","EA",null,null,0]
[46,642825,"OVERALL:ACID RESIST ;97 ;POLY COTTON","EA",null,null,0]
[47,642826,"OVERALL:ACID RESIST ;102 ;POLY COTTON","EA",null,null,0]
[48,642827,"OVERALL:ACID RESIST ;107 ;POLY COTTON","EA",null,null,0]
[49,642828,"OVERALL:ACID RESIST ;112 ;POLY COTTON","EA",null,null,0]
[50,642829,"OVERALL:ACID RESIST ;117 ;POLY COTTON","EA",null,null,0]
[51,642830,"OVERALL:ACID RESIST ;122 ;POLY COTTON","EA",null,null,0]
[52,642831,"OVERALL:ACID RESIST ;127 ;POLY COTTON","EA",null,null,0]
[53,642832,"OVERALL:ACID RESIST ;132 ;POLY COTTON","EA",null,null,0]
[54,642833,"OVERALL:ACID RESIST ;137 ;POLY COTTON","EA",null,null,0]
[55,642834,"OVERALL:ACID RESIST ;142 ;POLY COTTON","EA",null,null,0]
[56,642835,"OVERALL:ACID RESIST ;147 ;POLY COTTON","EA",null,null,0]
[57,642836,"OVERALL:ACID RESIST ;152 ;POLY COTTON","EA",null,null,0]
[58,642837,"OVERALL:ACID RESIST ;157 ;POLY COTTON","EA",null,null,0]
[null,null,null,null,{"$f":"SUM(E3:E60)","v":0},{"$f":"SUM(F3:F60)","v":0},{"$f":"SUM(G3:G60)","v":0}]

{"sheet":"2Piece Overall","index":7,"n_rows":153,"n_cols":7,"rows_kept":153,"cut":false,"hidden":false,"merged":[[0,6,1,6],[0,0,1,0],[0,1,1,1],[0,2,1,2],[0,3,1,3],[0,5,1,5]]}
["NO","SAP MATERIAL NUMBER","ITEM DESCRIPTION","UNIT MEASURE","Quantity","Item price","Price"]
[]
[1,222467,"TROUSERS:MEN LONG;77 CM;NAVY BLUE","EA",null,null,{"$f":"SUM(E3*F3)","v":0}]
[2,222468,"TROUSERS:MEN LONG;82 CM;NAVY BLUE","EA",null,null,{"$f":"SUM(E4*F4)","v":0}]
[3,222469,"TROUSERS:MEN LONG;87 CM;NAVY BLUE","EA",null,null,0]
[4,222470,"TROUSERS:MEN LONG;92 CM;NAVY BLUE","EA",null,null,0]
[5,222471,"TROUSERS:MEN LONG;97 CM;NAVY BLUE","EA",null,null,0]
[6,222472,"TROUSERS:MEN LONG;102 CM;NAVY BLUE","EA",null,null,0]
[7,222473,"TROUSERS:MEN LONG;107 CM;NAVY BLUE","EA",null,null,0]
[8,222474,"TROUSERS:MEN LONG;112 CM;NAVY BLUE","EA",null,null,0]
[9,222476,"TROUSERS:MEN LONG;117 CM;NAVY BLUE","EA",null,null,0]
[10,222477,"TROUSERS:MEN LONG;122 CM;NAVY BLUE","EA",null,null,0]
[11,222478,"TROUSERS:MEN LONG;127 CM;NAVY BLUE","EA",null,null,0]
[12,222479,"TROUSERS:MEN LONG;132 CM;NAVY BLUE","EA",null,null,0]
[13,222480,"TROUSERS:MEN LONG;137 CM;NAVY BLUE","EA",null,null,0]
[14,222481,"TROUSERS:MEN LONG;142 CM;NAVY BLUE","EA",null,null,0]
[15,222482,"TROUSERS:MEN LONG;147 CM;NAVY BLUE","EA",null,null,0]
[16,566736,"TROUSERS:MEN LONG;152 CM;NAVY BLUE","EA",null,null,0]
[17,566737,"TROUSERS:MEN LONG;157 CM;NAVY BLUE","EA",null,null,0]
[35,566676,"TROUSERS:CLEAN CONDITION;77 CM;WHITE","EA",null,null,0]
[36,566677,"TROUSERS:CLEAN CONDITION;82 CM;WHITE","EA",null,null,0]
[37,566678,"TROUSERS:CLEAN CONDITION;87 CM;WHITE","EA",null,null,0]
[38,566680,"TROUSERS:CLEAN CONDITION;92 CM;WHITE","EA",null,null,0]
[39,566681,"TROUSERS:CLEAN CONDITION;97 CM;WHITE","EA",null,null,0]
[40,566682,"TROUSERS:CLEAN CONDITION;102 CM;WHITE","EA",null,null,0]
[41,566683,"TROUSERS:CLEAN CONDITION;107 CM;WHITE","EA",null,null,0]
[42,566684,"TROUSERS:CLEAN CONDITION;112 CM;WHITE","EA",null,null,0]
[43,566685,"TROUSERS:CLEAN CONDITION;117 CM;WHITE","EA",null,null,0]
[44,566686,"TROUSERS:CLEAN CONDITION;122 CM;WHITE","EA",null,null,0]
[45,566687,"TROUSERS:CLEAN CONDITION;127 CM;WHITE","EA",null,null,0]
[46,566688,"TROUSERS:CLEAN CONDITION;132 CM;WHITE","EA",null,null,0]
[47,566689,"TROUSERS:CLEAN CONDITION;137 CM;WHITE","EA",null,null,0]
[48,566690,"TROUSERS:CLEAN CONDITION;142 CM;WHITE","EA",null,null,0]
[49,566691,"TROUSERS:CLEAN CONDITION;147 CM;WHITE","EA",null,null,0]
[50,566692,"TROUSERS:CLEAN CONDITION;152 CM;WHITE","EA",null,null,0]
[51,566693,"TROUSERS:CLEAN CONDITION;157 CM;WHITE","EA",null,null,0]
[52,222499,"TROUSERS:LADIES LONG;26; 67;NAVY BLUE","EA",null,null,0]
[53,222500,"TROUSERS:LADIES LONG;28; 72;NAVY BLUE","EA",null,null,0]
[54,222501,"TROUSERS:LADIES LONG;30; 77;NAVY BLUE","EA",null,null,0]
[55,222502,"TROUSERS:LADIES LONG;32; 82;NAVY BLUE","EA",null,null,0]
[56,222503,"TROUSERS:LADIES LONG;34; 87;NAVY BLUE","EA",null,null,0]
[57,222504,"TROUSERS:LADIES LONG;36; 92;NAVY BLUE","EA",null,null,0]
[58,222505,"TROUSERS:LADIES LONG;38; 97;NAVY BLUE","EA",null,null,0]
[59,222506,"TROUSERS:LADIES LONG;40; 102;NAVY BLUE","EA",null,null,0]
[60,222507,"TROUSERS:LADIES LONG;42; 107;NAVY BLUE","EA",null,null,0]
[61,222508,"TROUSERS:LADIES LONG;44; 112;NAVY BLUE","EA",null,null,0]
[62,222509,"TROUSERS:LADIES LONG;46; 117;NAVY BLUE","EA",null,null,0]
[63,222510,"TROUSERS:LADIES LONG;48; 122;NAVY BLUE","EA",null,null,0]
[64,222511,"TROUSERS:LADIES LONG;50; 127;NAVY BLUE","EA",null,null,0]
[65,222512,"TROUSERS:LADIES LONG;52; 132;NAVY BLUE","EA",null,null,0]
[66,222513,"TROUSERS:LADIES LONG;54; 137;NAVY BLUE","EA",null,null,0]
[67,566481,"JACKET,UTILITY:OPERATING;77 CM","EA",null,null,0]
[68,566482,"JACKET,UTILITY:OPERATING;82 CM","EA",null,null,0]
[69,222535,"JACKET,UTILITY:OPERATING;87 CM","EA",null,null,0]
[70,566544,"JACKET,UTILITY:OPERATING;92 CM","EA",null,null,0]
[71,222536,"JACKET,UTILITY:OPERATING;97 CM","EA",null,null,0]
[72,566494,"JACKET,UTILITY:OPERATING;102 CM","EA",null,null,0]
[73,222537,"JACKET,UTILITY:OPERATING;107 CM","EA",null,null,0]
[74,566503,"JACKET,UTILITY:OPERATING;112 CM","EA",null,null,0]
[75,222538,"JACKET,UTILITY:OPERATING;117 CM","EA",null,null,0]
[76,222539,"JACKET,UTILITY:OPERATING;122 CM","EA",null,null,0]
[77,566511,"JACKET,UTILITY:OPERATING;127 CM","EA",null,null,0]
[78,222540,"JACKET,UTILITY:OPERATING;132 CM","EA",null,null,0]
[79,172193,"JACKET,UTILITY:OPERATING;137 CM","EA",null,null,0]
[80,566512,"JACKET,UTILITY:OPERATING;142 CM","EA",null,null,0]
[81,172192,"JACKET,UTILITY:OPERATING;147 CM","EA",null,null,0]
[82,566513,"JACKET,UTILITY:OPERATING;152 CM","EA",null,null,0]
[83,179714,"JACKET,UTILITY:OPERATING;157 CM","EA",null,null,{"$f":"SUM(E68*F68)","v":0}]
[101,566545,"JACKET,UTILITY:ACID/ALKALI;77 CM","EA",null,null,0]
[102,566546,"JACKET,UTILITY:ACID/ALKALI;82 CM","EA",null,null,0]
[103,566452,"JACKET,UTILITY:ACID/ALKALI;87 CM","EA",null,null,0]
[104,566547,"JACKET,UTILITY:ACID/ALKALI;92 CM","EA",null,null,0]
[105,566453,"JACKET,UTILITY:ACID/ALKALI;97 CM","EA",null,null,0]
[106,566548,"JACKET,UTILITY:ACID/ALKALI;102 CM","EA",null,null,0]
[107,566454,"JACKET,UTILITY:ACID/ALKALI;107 CM","EA",null,null,0]
[108,566552,"JACKET,UTILITY:ACID/ALKALI;112 CM","EA",null,null,0]
[109,566455,"JACKET,UTILITY:ACID/ALKALI;117 CM","EA",null,null,0]
[110,566456,"JACKET,UTILITY:ACID/ALKALI;122 CM","EA",null,null,0]
[111,566549,"JACKET,UTILITY:ACID/ALKALI;127 CM","EA",null,null,0]
[112,566457,"JACKET,UTILITY:ACID/ALKALI;132 CM","EA",null,null,0]
[113,566458,"JACKET,UTILITY:ACID/ALKALI;137 CM","EA",null,null,0]
[114,566550,"JACKET,UTILITY:ACID/ALKALI;142 CM","EA",null,null,0]
[115,566459,"JACKET,UTILITY:ACID/ALKALI;147 CM","EA",null,null,0]
[116,566551,"JACKET,UTILITY:ACID/ALKALI;152 CM","EA",null,null,0]
[117,566460,"JACKET,UTILITY:ACID/ALKALI;157 CM","EA",null,null,0]
[118,566629,"JACKET,OVERALL:CLEAN CONDITION;77 CM","EA",null,null,0]
[119,566630,"JACKET,OVERALL:CLEAN CONDITION;82 CM","EA",null,null,0]
[120,566631,"JACKET,OVERALL:CLEAN CONDITION;87 CM","EA",null,null,0]
[121,566632,"JACKET,OVERALL:CLEAN CONDITION;92 CM","EA",null,null,0]
[122,566633,"JACKET,OVERALL:CLEAN CONDITION;97 CM","EA",null,null,0]
[123,566634,"JACKET,OVERALL:CLEAN CONDITION;102 CM","EA",null,null,0]
[124,566635,"JACKET,OVERALL:CLEAN CONDITION;107 CM","EA",null,null,0]
[125,566636,"JACKET,OVERALL:CLEAN CONDITION;112 CM","EA",null,null,0]
[126,566637,"JACKET,OVERALL:CLEAN CONDITION;117 CM","EA",null,null,0]
[127,566638,"JACKET,OVERALL:CLEAN CONDITION;122 CM","EA",null,null,0]
[128,566639,"JACKET,OVERALL:CLEAN CONDITION;127 CM","EA",null,null,0]
[129,566640,"JACKET,OVERALL:CLEAN CONDITION;132 CM","EA",null,null,0]
[130,566641,"JACKET,OVERALL:CLEAN CONDITION;137 CM","EA",null,null,0]
[131,566642,"JACKET,OVERALL:CLEAN CONDITION;142 CM","EA",null,null,0]
[132,566643,"JACKET,OVERALL:CLEAN CONDITION;147 CM","EA",null,null,0]
[133,566644,"JACKET,OVERALL:CLEAN CONDITION;152 CM","EA",null,null,0]
[134,566645,"JACKET,OVERALL:CLEAN CONDITION;157 CM","EA",null,null,0]
[135,576288,"TROUSERS:ACID/ALKALI ;87 CM","EA",null,null,0]
[136,576301,"TROUSERS:ACID/ALKALI ;92 CM","EA",null,null,0]
[137,576295,"TROUSERS:ACID/ALKALI ;127 CM","EA",null,null,0]
[138,576297,"TROUSERS:ACID/ALKALI ;137 CM","EA",null,null,0]
[139,576286,"TROUSERS:ACID/ALKALI ;77 CM","EA",null,null,0]
[140,576293,"TROUSERS:ACID/ALKALI ;117 CM","EA",null,null,0]
[141,576294,"TROUSERS:ACID/ALKALI ;122 CM","EA",null,null,0]
[142,576299,"TROUSERS:ACID/ALKALI ;147 CM","EA",null,null,0]
[143,576296,"TROUSERS:ACID/ALKALI ;132 CM","EA",null,null,0]
[144,576287,"TROUSERS:ACID/ALKALI ;82 CM","EA",null,null,0]
[145,576291,"TROUSERS:ACID/ALKALI ;107 CM","EA",null,null,0]
[146,576290,"TROUSERS:ACID/ALKALI ;102 CM","EA",null,null,0]
[147,576298,"TROUSERS:ACID/ALKALI ;142 CM","EA",null,null,0]
[148,576289,"TROUSERS:ACID/ALKALI ;97 CM","EA",null,null,0]
[149,576292,"TROUSERS:ACID/ALKALI ;112 CM","EA",null,null,0]
[150,576302,"TROUSERS:ACID/ALKALI ;157 CM","EA",null,null,0]
[151,576300,"TROUSERS:ACID/ALKALI ;152 CM","EA"]
[152,643015,"TROUSERS:ACID RESIST ;77 ;BOTTLE GREEN","EA"]
[153,643015,"TROUSERS:ACID RESIST ;77 ;BOTTLE GREEN","EA"]
[154,643017,"TROUSERS:ACID RESIST ;87 ;BOTTLE GREEN","EA"]
[155,643018,"TROUSERS:ACID RESIST ;92 ;BOTTLE GREEN","EA"]
[156,643019,"TROUSERS:ACID RESIST ;97 ;BOTTLE GREEN","EA"]
[157,643020,"TROUSERS:ACID RESIST ;102 ;BOTTLE GREEN","EA"]
[158,643021,"TROUSERS:ACID RESIST ;107 ;BOTTLE GREEN","EA"]
[159,643022,"TROUSERS:ACID RESIST ;112 ;BOTTLE GREEN","EA"]
[160,643023,"TROUSERS:ACID RESIST ;117 ;BOTTLE GREEN","EA"]
[161,643024,"TROUSERS:ACID RESIST ;122 ;BOTTLE GREEN","EA"]
[162,643025,"TROUSERS:ACID RESIST ;127 ;BOTTLE GREEN","EA"]
[163,643026,"TROUSERS:ACID RESIST ;132 ;BOTTLE GREEN","EA"]
[164,643027,"TROUSERS:ACID RESIST ;137 ;BOTTLE GREEN","EA"]
[165,643028,"TROUSERS:ACID RESIST ;142 ;BOTTLE GREEN","EA"]
[166,643029,"TROUSERS:ACID RESIST ;147 ;BOTTLE GREEN","EA"]
[167,643030,"TROUSERS:ACID RESIST ;152 ;BOTTLE GREEN","EA"]
[68,643031,"TROUSERS:ACID RESIST ;157 ;BOTTLE GREEN","EA"]
[169,643016,"TROUSERS:ACID RESIST ;82 ;BOTTLE GREEN","EA"]
[170,642998,"JACKET,OVERALL:ACID RESIST ;77","EA"]
[171,642999,"JACKET,OVERALL:ACID RESIST ;82","EA"]
[172,643000,"JACKET,OVERALL:ACID RESIST ;87","EA"]
[173,643001,"JACKET,OVERALL:ACID RESIST ;92","EA"]
[174,643002,"JACKET,OVERALL:ACID RESIST ;97","EA"]
[175,643003,"JACKET,OVERALL:ACID RESIST ;102","EA"]
[176,643004,"JACKET,OVERALL:ACID RESIST ;107","EA"]
[177,643005,"JACKET,OVERALL:ACID RESIST ;112","EA"]
[178,643006,"JACKET,OVERALL:ACID RESIST ;117","EA"]
[179,643007,"JACKET,OVERALL:ACID RESIST ;122","EA"]
[180,643008,"JACKET,OVERALL:ACID RESIST ;127","EA"]
[181,643009,"JACKET,OVERALL:ACID RESIST ;132","EA"]
[182,643010,"JACKET,OVERALL:ACID RESIST ;137","EA"]
[183,643011,"JACKET,OVERALL:ACID RESIST ;142","EA"]
[184,643012,"JACKET,OVERALL:ACID RESIST ;147","EA"]
[null,null,null,null,{"$f":"SUM(E3:E152)","v":0},{"$f":"SUM(F3:F152)","v":0},{"$f":"SUM(G3:G152)","v":0}]

{"sheet":"Thermal Jackets","index":8,"n_rows":14,"n_cols":8,"rows_kept":14,"cut":false,"hidden":false,"merged":[[0,6,1,6],[0,7,1,7],[0,0,1,0],[0,5,1,5],[0,1,1,1],[0,2,1,2],[0,3,1,3]]}
["NO","SAP MATERIAL NUMBER","ITEM DESCRIPTION","UNIT MEASURE","Quantity","Item price","Price","Price"]
[]
[1,222553,"JACKET,UTILITY:THERMAL;S; 34; 87","EA",null,null,{"$f":"SUM(E3*F3)","v":0}]
[2,222554,"JACKET,UTILITY:THERMAL;M; 38; 97","EA",null,null,{"$f":"SUM(E4*F4)","v":0}]
[3,222555,"JACKET,UTILITY:THERMAL;L;42; 107","EA",null,null,0]
[4,222556,"JACKET,UTILITY:THERMAL;XL; 46; 117","EA",null,null,0]
[5,222558,"JACKET,UTILITY:THERMAL;XXL; 48; 122","EA",null,null,0]
[6,222559,"JACKET,UTILITY:THERMAL;XXXL","EA",null,null,0]
[7,187793,"JACKET,UTILITY:THERMAL;4XL","EA",null,null,0]
[8,186009,"JACKET,UTILITY:THERMAL;5XL","EA",null,null,0]
[9,160941,"APRON:CHEMICAL;WD 700MM X LG 1.1M","EA",null,null,0]
[10,185205,"APRON,WELDER:FULL LENGTH with gloves","EA",null,null,0]
[11,172065,"BAG,DUFFEL:NAVY BLUE ;PVC CANVAS","EA",null,null,0]
[null,null,null,null,{"$f":"SUM(E3:E13)","v":0},0,{"$f":"SUM(G3:G13)","v":0}]

{"sheet":"Dust Coats","index":9,"n_rows":13,"n_cols":7,"rows_kept":13,"cut":false,"hidden":false,"merged":[[0,5,1,5],[0,6,1,6]]}
["NO","SAP MATERIAL NUMBER","ITEM DESCRIPTION","UNIT MEASURE","Quantity","Item price","Price"]
[]
[1,160926,"COAT,DUST:GP;82 CM;COTTON","EA",null,null,{"$f":"SUM(E3*F3)","v":0}]
[2,160661,"COAT,DUST:GP;87 CM;COTTON","EA",null,null,{"$f":"SUM(E4*F4)","v":0}]
[3,566444,"COAT,DUST:GP;92 CM;COTTON","EA",null,null,0]
[4,160660,"COAT,DUST:GP;97 CM;COTTON","EA",null,null,0]
[5,16885,"COAT,DUST:GP;102 CM;COTTON","EA",null,null,0]
[6,160659,"COAT,DUST:GP;107 CM;COTTON","EA",null,null,0]
[7,160658,"COAT,DUST:GP;112 CM;COTTON","EA",null,null,0]
[8,160663,"COAT,DUST:GP;117 CM;COTTON","EA",null,null,0]
[9,160664,"COAT,DUST:GP;122 CM;COTTON","EA",null,null,0]
[10,566442,"COAT,DUST:GP;127 CM;COTTON","EA",null,null,0]
[null,null,null,null,{"$f":"SUM(E3:E12)","v":0},0,{"$f":"SUM(G3:G12)","v":0}]

{"sheet":"Shirts","index":10,"n_rows":61,"n_cols":7,"rows_kept":61,"cut":false,"hidden":false,"merged":[[0,6,1,6],[0,0,1,0],[0,1,1,1],[0,2,1,2],[0,3,1,3],[0,5,1,5]]}
["NO","SAP MATERIAL NUMBER ","ITEM DESCRIPTION","UNIT MEASURE","Quantity","Item price","Price"]
[]
[1,222367,"SHIRT:MEN LONG SLEEVE;36 CM;COTTON","EA",null,219.13,{"$f":"SUM(E3*F3)","v":0}]
[2,222370,"SHIRT:MEN LONG SLEEVE;37 CM;COTTON","EA",null,219.13,{"$f":"SUM(E4*F4)","v":0}]
[3,222371,"SHIRT:MEN LONG SLEEVE;38 CM;COTTON","EA",null,219.13,0]
[4,222372,"SHIRT:MEN LONG SLEEVE;39 CM;COTTON","EA",null,219.13,0]
[5,222374,"SHIRT:MEN LONG SLEEVE;40 CM;COTTON","EA",null,219.13,0]
[6,222375,"SHIRT:MEN LONG SLEEVE;41 CM;COTTON","EA",null,219.13,0]
[7,222376,"SHIRT:MEN LONG SLEEVE;42 CM;COTTON","EA",null,219.13,0]
[8,222377,"SHIRT:MEN LONG SLEEVE;43 CM;COTTON","EA",null,219.13,0]
[9,222378,"SHIRT:MEN LONG SLEEVE;44 CM;COTTON","EA",null,219.13,0]
[10,222379,"SHIRT:MEN LONG SLEEVE;45 CM;COTTON","EA",null,219.13,0]
[11,222380,"SHIRT:MEN LONG SLEEVE;46 CM;COTTON","EA",null,219.13,0]
[12,222381,"SHIRT:MEN LONG SLEEVE;47 CM;COTTON","EA",null,219.13,0]
[13,222382,"SHIRT:MEN LONG SLEEVE;48 CM;COTTON","EA",null,219.13,0]
[14,222383,"SHIRT:MEN LONG SLEEVE;49 CM;COTTON","EA",null,219.13,0]
[15,222384,"SHIRT:MEN SHORT SLEEVE;36 CM;COTTON","EA",null,185.88,0]
[16,222386,"SHIRT:MEN SHORT SLEEVE;37 CM;COTTON","EA",null,185.88,0]
[17,222387,"SHIRT:MEN SHORT SLEEVE;38 CM;COTTON","EA",null,185.88,0]
[18,222389,"SHIRT:MEN SHORT SLEEVE;39 CM;COTTON","EA",null,185.88,0]
[19,222390,"SHIRT:MEN SHORT SLEEVE;40 CM;COTTON","EA",null,185.88,0]
[20,222391,"SHIRT:MEN SHORT SLEEVE;41 CM;COTTON","EA",null,185.88,0]
[21,222392,"SHIRT:MEN SHORT SLEEVE;42 CM;COTTON","EA",null,185.88,0]
[22,222393,"SHIRT:MEN SHORT SLEEVE;43 CM;COTTON","EA",null,185.88,0]
[23,222394,"SHIRT:MEN SHORT SLEEVE;44 CM;COTTON","EA",null,185.88,0]
[24,222395,"SHIRT:MEN SHORT SLEEVE;45 CM;COTTON","EA",null,185.88,0]
[25,222396,"SHIRT:MEN SHORT SLEEVE;46 CM;COTTON","EA",null,185.88,0]
[26,222397,"SHIRT:MEN SHORT SLEEVE;47 CM;COTTON","EA",null,185.88,0]
[27,222398,"SHIRT:MEN SHORT SLEEVE;48 CM;COTTON","EA",null,185.88,0]
[28,222399,"SHIRT:MEN SHORT SLEEVE;49 CM;COTTON","EA",null,185.88,0]
[29,222401,"SHIRT,WOMAN:LONG;77 CM;SAND STONE","EA",null,193.54,0]
[30,222402,"SHIRT,WOMAN:LONG;82 CM;SAND STONE","EA",null,193.54,0]
[31,222403,"SHIRT,WOMAN:LONG;87 CM;SAND STONE","EA",null,193.54,0]
[32,222404,"SHIRT,WOMAN:LONG;92 CM;SAND STONE","EA",null,193.54,0]
[33,565829,"SHIRT,WOMAN:LONG;97 CM;SAND STONE","EA",null,193.54,0]
[34,222405,"SHIRT,WOMAN:LONG;102 CM;SAND STONE","EA",null,193.54,0]
[35,222406,"SHIRT,WOMAN:LONG;107 CM;SAND STONE","EA",null,193.54,0]
[36,222407,"SHIRT,WOMAN:LONG;112 CM;SAND STONE","EA",null,193.54,0]
[37,222408,"SHIRT,WOMAN:LONG;117 CM;SAND STONE","EA",null,193.54,0]
[38,222409,"SHIRT,WOMAN:LONG;122 CM;SAND STONE","EA",null,193.54,0]
[39,222410,"SHIRT,WOMAN:LONG;127 CM;SAND STONE","EA",null,193.54,0]
[40,222411,"SHIRT,WOMAN:LONG;132 CM;SAND STONE","EA",null,193.54,0]
[41,222412,"SHIRT,WOMAN:LONG;137 CM;SAND STONE","EA",null,193.54,0]
[42,222413,"SHIRT,WOMAN:LONG;142 CM;SAND STONE","EA",null,193.54,0]
[43,222414,"SHIRT,WOMAN:LONG;147 CM;SAND STONE","EA",null,null,0]
[44,222415,"SHIRT,WOMAN:SHORT;77 CM;SAND STONE","EA",null,null,0]
[45,222416,"SHIRT,WOMAN:SHORT;82 CM;SAND STONE","EA",null,null,0]
[46,222417,"SHIRT,WOMAN:SHORT;87 CM;SAND STONE","EA",null,null,0]
[47,222418,"SHIRT,WOMAN:SHORT;92 CM;SAND STONE","EA",null,null,0]
[48,565830,"SHIRT,WOMAN:SHORT;97 CM;SAND STONE","EA",null,null,0]
[49,222419,"SHIRT,WOMAN:SHORT;102 CM;SAND STONE","EA",null,null,0]
[50,222420,"SHIRT,WOMAN:SHORT;107 CM;SAND STONE","EA",null,null,0]
[51,222421,"SHIRT,WOMAN:SHORT;112 CM;SAND STONE","EA",null,null,0]
[52,222422,"SHIRT,WOMAN:SHORT;117 CM;SAND STONE","EA",null,null,0]
[53,222423,"SHIRT,WOMAN:SHORT;122 CM;SAND STONE","EA",null,null,0]
[54,222424,"SHIRT,WOMAN:SHORT;127 CM;SAND STONE","EA",null,null,0]
[55,222425,"SHIRT,WOMAN:SHORT;132 CM;SAND STONE","EA",null,null,0]
[56,222426,"SHIRT,WOMAN:SHORT;137 CM;SAND STONE","EA",null,null,0]
[57,222427,"SHIRT,WOMAN:SHORT;142 CM;SAND STONE","EA",null,null,0]
[58,222428,"SHIRT,WOMAN:SHORT;147 CM;SAND STONE","EA",null,null,0]
[null,null,null,null,{"$f":"SUM(E3:E60)","v":0},8379.7000000000025,{"$f":"SUM(G3:G60)","v":0}]

{"sheet":"Rain Wear","index":11,"n_rows":10,"n_cols":7,"rows_kept":10,"cut":false,"hidden":false,"merged":[[0,6,1,6],[0,1,1,1],[0,0,1,0],[0,2,1,2],[0,3,1,3],[0,5,1,5]]}
["NO","SAP MATERIAL NUMBER","ITEM DESCRIPTION","UNIT MEASURE","Quantity","Item price","Price"]
[]
[1,222561,"RAINWEAR:2 PIECE SUIT;S;NAVY BLUE","EA",null,null,{"$f":"SUM(E3*F3)","v":0}]
[2,225676,"RAINWEAR:2 PIECE SUIT;M;NAVY BLUE","EA",null,null,0]
[3,222566,"RAINWEAR:2 PIECE SUIT;L;NAVY BLUE","EA",null,null,0]
[4,222567,"RAINWEAR:2 PIECE SUIT;XL;NAVY BLUE","EA",null,null,0]
[5,222568,"RAINWEAR:2 PIECE SUIT;XXL;NAVY BLUE","EA",null,null,0]
[6,222569,"RAINWEAR:2 PIECE SUIT;XXXL;NAVY BLUE","EA",null,null,0]
[7,565711,"RAINWEAR:2 PIECE SUIT;4XL;NAVY BLUE","EA",null,null,0]
[null,null,null,null,{"$f":"SUM(E3:E9)","v":0},{"$f":"SUM(F3:F9)","v":0},{"$f":"SUM(G3:G9)","v":0}]

{"sheet":"Reflective Vests","index":12,"n_rows":58,"n_cols":8,"rows_kept":58,"cut":false,"hidden":false,"merged":[[0,7,1,7],[0,1,1,1],[0,2,1,2],[0,3,1,3],[0,4,1,4],[0,6,1,6]]}
[null,"NO","SAP MATERIAL NUMBER","ITEM DESCRIPTION","UNIT MEASURE","Quantity","Item price","Price"]
[]
[null,1,239865,"VEST, H/VISIB:EVACUATION;S;NYLON","EA",null,null,{"$f":"SUM(F3*G3)","v":0}]
[null,2,239866,"VEST, H/VISIB:EVACUATION;M;NYLON","EA",null,null,{"$f":"SUM(F4*G4)","v":0}]
[null,3,239867,"VEST, H/VISIB:EVACUATION;L;NYLON","EA",null,null,0]
[null,4,239868,"VEST, H/VISIB:EVACUATION;XL;NYLON","EA",null,null,0]
[null,5,239869,"VEST, H/VISIB:EVACUATION;XXL;NYLON","EA",null,null,0]
[null,6,239871,"VEST, H/VISIB:EVACUATION;XXXL;NYLON","EA",null,null,0]
[null,7,239872,"VEST, H/VISIB:EVACUATION;4XL;NYLON","EA",null,null,0]
[null,8,239873,"VEST, H/VISIB:EVACUATION;5XL;NYLON","EA",null,null,0]
[null,9,565467,"VEST, H/VISIB:EVACUATION;6XL;NYLON","EA",null,null,0]
[null,10,565627,"VEST, H/VISIB:FIRST AID;S;NYLON","EA",null,null,0]
[null,11,565628,"VEST, H/VISIB:FIRST AID;M;NYLON","EA",null,null,0]
[null,12,565635,"VEST, H/VISIB:FIRST AID;L;NYLON","EA",null,null,0]
[null,13,565631,"VEST, H/VISIB:FIRST AID;XL;NYLON","EA",null,null,0]
[null,14,565629,"VEST, H/VISIB:FIRST AID;XXL;NYLON","EA",null,null,0]
[null,15,565630,"VEST, H/VISIB:FIRST AID;XXXL;NYLON","EA",null,null,0]
[null,16,565632,"VEST, H/VISIB:FIRST AID;4XL;NYLON","EA",null,null,0]
[null,17,565632,"VEST, H/VISIB:FIRST AID;4XL;NYLON","EA",null,null,0]
[null,18,565633,"VEST, H/VISIB:FIRST AID;5XL;NYLON","EA",null,null,0]
[null,19,565634,"VEST, H/VISIB:FIRST AID;6XL;NYLON","EA",null,null,0]
[null,20,565611,"VEST, H/VISIB:FIRE PROTECTION;S;NYLON","EA",null,null,0]
[null,21,565612,"VEST, H/VISIB:FIRE PROTECTION;M;NYLON","EA",null,null,0]
[null,22,565613,"VEST, H/VISIB:FIRE PROTECTION;L;NYLON","EA",null,null,0]
[null,23,565614,"VEST, H/VISIB:FIRE PROTECTION;XL;NYLON","EA",null,null,0]
[null,24,565615,"VEST, H/VISIB:FIRE PROTECTION;XXL;NYLON","EA",null,null,0]
[null,25,565616,"VEST, H/VISIB:FIRE PROTECTION;XXXL;NYLON","EA",null,null,0]
[null,26,565617,"VEST, H/VISIB:FIRE PROTECTION;4XL;NYLON","EA",null,null,0]
[null,27,565618,"VEST, H/VISIB:FIRE PROTECTION;5XL;NYLON","EA",null,null,0]
[null,28,565619,"VEST, H/VISIB:FIRE PROTECTION;6XL;NYLON","EA",null,null,0]
[null,29,237954,"VEST, H/VISIB:EMPLOYEE AT WORK;S;NYLON","EA",null,null,0]
[null,30,565547,"VEST, H/VISIB:EMPLOYEE AT WORK;M;NYLON","EA",null,null,0]
[null,31,565548,"VEST, H/VISIB:EMPLOYEE AT WORK;L;NYLON","EA",null,null,0]
[null,32,565549,"VEST, H/VISIB:EMPLOYEE AT WORK;XL;NYLON","EA",null,null,0]
[null,33,565550,"VEST, H/VISIB:EMPLOYEE AT WORK;XXL;NYLON","EA",null,null,0]
[null,34,565551,"VEST, H/VISIB:EMPLOYEE AT WORK;XXXL","EA",null,null,0]
[null,35,565552,"VEST, H/VISIB:EMPLOYEE AT WORK;4XL;NYLON","EA",null,null,0]
[null,36,565553,"VEST, H/VISIB:EMPLOYEE AT WORK;5XL;NYLON","EA",null,null,0]
[null,37,565554,"VEST, H/VISIB:EMPLOYEE AT WORK;6XL;NYLON","EA",null,null,0]
[null,38,565511,"VEST, H/VISIB:TRANSPORT;S;NYLON","EA",null,null,0]
[null,39,565503,"VEST, H/VISIB:TRANSPORT;M;NYLON","EA",null,null,0]
[null,40,565505,"VEST, H/VISIB:TRANSPORT;L;NYLON","EA",null,null,0]
[null,41,565506,"VEST, H/VISIB:TRANSPORT;XL;NYLON","EA",null,null,0]
[null,42,565507,"VEST, H/VISIB:TRANSPORT;XXL;NYLON","EA",null,null,0]
[null,43,565504,"VEST, H/VISIB:TRANSPORT;XXXL;NYLON","EA",null,null,0]
[null,44,565508,"VEST, H/VISIB:TRANSPORT;4XL;NYLON","EA",null,null,0]
[null,45,565510,"VEST, H/VISIB:TRANSPORT;5XL;NYLON","EA",null,null,0]
[null,46,565509,"VEST, H/VISIB:TRANSPORT;6XL;NYLON","EA",null,null,0]
[null,47,565536,"VEST, H/VISIB:MANAGEMENT;S;NYLON","EA",null,null,0]
[null,48,565537,"VEST, H/VISIB:MANAGEMENT;M;NYLON","EA",null,null,0]
[null,49,565538,"VEST, H/VISIB:MANAGEMENT;L;NYLON","EA",null,null,0]
[null,50,565539,"VEST, H/VISIB:MANAGEMENT;XL;NYLON","EA",null,null,0]
[null,51,565540,"VEST, H/VISIB:MANAGEMENT;XXL;NYLON","EA",null,null,0]
[null,52,565541,"VEST, H/VISIB:MANAGEMENT;XXXL;NYLON","EA",null,null,0]
[null,53,565542,"VEST, H/VISIB:MANAGEMENT;4XL;NYLON","EA",null,null,0]
[null,54,565543,"VEST, H/VISIB:MANAGEMENT;5XL;NYLON","EA",null,null,0]
[null,55,565544,"VEST, H/VISIB:MANAGEMENT;6XL;NYLON","EA",null,null,0]
[null,null,null,null,null,{"$f":"SUM(F3:F57)","v":0},0,{"$f":"SUM(H3:H57)","v":0}]

{"sheet":"Eye Protection","index":13,"n_rows":11,"n_cols":7,"rows_kept":11,"cut":false,"hidden":false,"merged":[[0,6,1,6],[0,0,1,0],[0,1,1,1],[0,2,1,2],[0,3,1,3],[0,5,1,5]]}
["NO","SAP MATERIAL  NUMBER","ITEM DESCRIPTION","UNIT MEASURE","Quantity","Item price","Price"]
[]
[1,147555,"Spectacle Visitors","EA",null,null,{"$f":"SUM(E3*F3)","v":0}]
[2,163475,"Spectacle Gas Welding Green","EA",null,null,{"$f":"SUM(E4*F4)","v":0}]
[3,220008,"Spectacle Goggle","EA",null,null,0]
[4,41024,"Spectacle Safety Protective Amber","EA",null,null,0]
[5,147556,"Spectacle Safety Wraparound Clear 48mm","EA",null,null,0]
[6,41004,"Spectacle Safety Indoor/Outdoor Variable","EA",null,null,0]
[7,163471,"Goggle Industrial Grey","EA",null,null,0]
[8,566174,"Cord Safety Glass Lg Adjustable Nylon","EA",null,null,0]
[null,null,null,null,{"$f":"SUM(E3:E10)","v":0},0,{"$f":"SUM(G3:G10)","v":0}]

{"sheet":"Safety Boots","index":14,"n_rows":63,"n_cols":9,"rows_kept":63,"cut":false,"hidden":false,"merged":[[50,0,50,5],[51,2,51,3],[52,2,52,3],[53,2,53,3],[59,2,59,3],[60,2,60,3],[61,2,61,3],[54,2,54,3],[55,2,55,3],[56,2,56,3],[57,2,57,3],[58,2,58,3],[0,8,1,8],[0,0,1,0],[0,1,1,1],[0,2,1,3],[0,4,1,4],[0,5,1,5],[2,0,2,6],[14,1,14,5],[26,0,26,5],[38,0,38,5],[0,7,1,7]]}
["NO","SAP MATERIAL NUMBER","ITEM DESCRIPTION",null,"SIZE","UNIT MEASURE","Quantity","Item price","Price"]
[]
["SAFETY BOOTS STANDARD SIZES"]
[1,566568," BOOT,SAFETY DARK BROWN",null,3,"PAIR",null,null,{"$f":"SUM(G4*H4)","v":0}]
[2,222581," BOOT,SAFETY DARK BROWN",null,4,"PAIR",null,null,{"$f":"SUM(G5*H5)","v":0}]
[3,222582," BOOT,SAFETY DARK BROWN",null,5,"PAIR",null,null,0]
[4,222583," BOOT,SAFETY DARK BROWN",null,6,"PAIR",null,null,0]
[5,222584," BOOT,SAFETY DARK BROWN",null,7,"PAIR",null,null,0]
[6,222585," BOOT,SAFETY DARK BROWN",null,8,"PAIR",null,null,0]
[7,222586," BOOT,SAFETY DARK BROWN",null,9,"PAIR",null,null,0]
[8,222587," BOOT,SAFETY DARK BROWN",null,10,"PAIR",null,null,0]
[9,566564," BOOT,SAFETY DARK BROWN",null,11,"PAIR",null,null,0]
[10,566565," BOOT,SAFETY DARK BROWN",null,12,"PAIR",null,null,0]
[11,566569," BOOT,SAFETY DARK BROWN",null,13,"PAIR",null,null,0]
[null,"SAFETY BOOTS WIDE SIZES"]
[12,566563," BOOT,SAFETY DARK BROWN",null,3,"PAIR",null,null,{"$f":"SUM(G16*H16)","v":0}]
[13,222572," BOOT,SAFETY DARK BROWN",null,4,"PAIR",null,null,0]
[14,222573," BOOT,SAFETY DARK BROWN",null,5,"PAIR",null,null,0]
[15,222574," BOOT,SAFETY DARK BROWN",null,6,"PAIR",null,null,0]
[16,222575," BOOT,SAFETY DARK BROWN",null,7,"PAIR",null,null,0]
[17,222576," BOOT,SAFETY DARK BROWN",null,8,"PAIR",null,null,0]
[18,222577," BOOT,SAFETY DARK BROWN",null,9,"PAIR",null,null,0]
[19,222578," BOOT,SAFETY DARK BROWN",null,10,"PAIR",null,null,0]
[20,222579," BOOT,SAFETY DARK BROWN",null,11,"PAIR",null,null,0]
[21,222580," BOOT,SAFETY DARK BROWN",null,12,"PAIR",null,null,0]
[22,566566," BOOT,SAFETY DARK BROWN",null,13,"PAIR",null,null,0]
["SAFETY SHOE STANDARD SIZE"]
[23,566572,"SHOE,SAFETY DARK BROWN",null,3,"PAIR",null,null,{"$f":"SUM(G28*H28)","v":0}]
[24,235901,"SHOE,SAFETY DARK BROWN",null,4,"PAIR",null,null,0]
[25,235902,"SHOE,SAFETY DARK BROWN",null,5,"PAIR",null,null,0]
[26,235903,"SHOE,SAFETY DARK BROWN",null,6,"PAIR",null,null,0]
[27,235904,"SHOE,SAFETY DARK BROWN",null,7,"PAIR",null,null,0]
[28,235905,"SHOE,SAFETY DARK BROWN",null,8,"PAIR",null,null,0]
[29,235906,"SHOE,SAFETY DARK BROWN",null,9,"PAIR",null,null,0]
[30,235907,"SHOE,SAFETY DARK BROWN",null,10,"PAIR",null,null,0]
[31,566575,"SHOE,SAFETY DARK BROWN",null,11,"PAIR",null,null,0]
[32,566576,"SHOE,SAFETY DARK BROWN",null,12,"PAIR",null,null,0]
[33,566573,"SHOE,SAFETY DARK BROWN",null,13,"PAIR",null,null,0]
["SAFETY SHOE WIDE SIZE"]
[34,566570,"SHOE,SAFETY DARK BROWN",null,3,"PAIR",null,null,{"$f":"SUM(G40*H40)","v":0}]
[35,235890,"SHOE,SAFETY DARK BROWN",null,4,"PAIR",null,null,0]
[36,235893,"SHOE,SAFETY DARK BROWN",null,5,"PAIR",null,null,0]
[37,235894,"SHOE,SAFETY DARK BROWN",null,6,"PAIR",null,null,0]
[38,235895,"SHOE,SAFETY DARK BROWN",null,7,"PAIR",null,null,0]
[39,235896,"SHOE,SAFETY DARK BROWN",null,8,"PAIR",null,null,0]
[40,235897,"SHOE,SAFETY DARK BROWN",null,9,"PAIR",null,null,0]
[41,235898,"SHOE,SAFETY DARK BROWN",null,10,"PAIR",null,null,0]
[42,235899,"SHOE,SAFETY DARK BROWN",null,11,"PAIR",null,null,0]
[43,235900,"SHOE,SAFETY DARK BROWN",null,12,"PAIR",null,null,0]
[44,566571,"SHOE,SAFETY DARK BROWN",null,13,"PAIR",null,null,0]
["GUMBOOTS"]
[45,566206,"GUMBOOT,KNEE HEIGHT,BLACK",null,3,"PAIR",null,null,{"$f":"SUM(G52*H52)","v":0}]
[46,566207,"GUMBOOT,KNEE HEIGHT,BLACK",null,4,"PAIR",null,null,0]
[47,566208,"GUMBOOT,KNEE HEIGHT,BLACK",null,5,"PAIR",null,null,0]
[48,161108,"GUMBOOT,KNEE HEIGHT,BLACK",null,6,"PAIR",null,null,0]
[49,17014,"GUMBOOT,KNEE HEIGHT,BLACK",null,7,"PAIR",null,null,0]
[50,117015,"GUMBOOT,KNEE HEIGHT,BLACK",null,8,"PAIR",null,null,0]
[51,117016,"GUMBOOT,KNEE HEIGHT,BLACK",null,9,"PAIR",null,null,0]
[52,117017,"GUMBOOT,KNEE HEIGHT,BLACK",null,10,"PAIR",null,null,0]
[53,17018,"GUMBOOT,KNEE HEIGHT,BLACK",null,11,"PAIR",null,null,0]
[54,161000,"GUMBOOT,KNEE HEIGHT,BLACK",null,12,"PAIR",null,null,0]
[55,161114,"GUMBOOT,KNEE HEIGHT,BLACK",null,13,"PAIR",null,null,0]
[null,null,null,null,null,null,{"$f":"SUM(G4:G62)","v":0},0,{"$f":"SUM(I4:I62)","v":0}]

{"sheet":"Socks","index":15,"n_rows":9,"n_cols":8,"rows_kept":9,"cut":false,"hidden":false,"merged":[[0,6,1,6],[0,7,1,7],[0,0,1,0],[0,1,1,1],[0,2,1,2],[0,3,1,3],[0,4,1,4]]}
["NO","SAP MATERIAL NUMBER","ITEM DESCRIPTION","SIZE","UNIT MEASURE","Quantity","Item price","Price"]
[]
[1,239825,"SOCKS,COTTON A/LENGTH NAVY BLUE","SMALL/MEDIUM","EA",null,null,{"$f":"SUM(F3*G3)","v":0}]
[2,239827,"SOCKS,COTTON A/LENGTH NAVY BLUE","LARGE/X-LARGE","EA",null,null,{"$f":"SUM(F4*G4)","v":0}]
[3,239828,"SOCKS,COTTON A/LENGTH NAVY BLUE","X2 LARGE/X3 -LARGE","EA",null,null,0]
[4,239829,"SOCKS,C/LENGTH NAVY BLUE","SMALL/MEDIUM","EA",null,null,0]
[5,239830,"SOCKS,C/LENGTH NAVY BLUE","LARGE/X-LARGE","EA",null,null,0]
[6,239831,"SOCKS,C/LENGTH NAVY BLUE","X2 LARGE/X3 -LARGE","EA",null,null,0]
[null,null,null,null,null,{"$f":"SUM(F3:F8)","v":0},0,{"$f":"SUM(H3:H8)","v":0}]

{"sheet":"Gloves","index":16,"n_rows":52,"n_cols":8,"rows_kept":52,"cut":false,"hidden":false,"merged":[[32,0,32,4],[11,4,12,4],[13,2,14,2],[13,1,14,1],[13,3,14,3],[13,4,14,4],[20,4,21,4],[15,2,18,2],[15,3,18,3],[15,4,18,4],[13,0,14,0],[19,0,19,4],[22,0,23,0],[22,1,23,1],[22,2,23,2],[28,0,29,0],[2,0,2,5],[11,1,12,1],[11,0,12,0],[11,2,12,2],[11,3,12,3],[10,0,10,4],[33,0,35,0],[33,1,35,1],[33,3,35,3],[33,4,35,4],[36,2,38,2],[36,4,38,4],[36,3,38,3],[28,1,29,1],[28,2,29,2],[28,3,29,3],[28,4,29,4],[30,0,31,0],[30,1,31,1],[30,2,31,2],[30,3,31,3],[30,4,31,4],[39,4,41,4],[33,2,35,2],[42,4,44,4],[45,4,47,4],[48,4,50,4],[42,2,44,2],[45,2,47,2],[48,2,50,2],[39,3,41,3],[42,3,44,3],[45,3,47,3],[48,3,50,3],[39,2,41,2],[45,0,47,0],[45,1,47,1],[48,0,50,0],[48,1,50,1],[36,0,38,0],[36,1,38,1],[39,0,41,0],[39,1,41,1],[42,0,44,0],[42,1,44,1],[0,6,1,6],[0,7,1,7],[0,0,1,0],[0,1,1,1],[0,2,1,2],[0,3,1,3],[0,4,1,4],[15,1,18,1],[15,0,18,0],[20,2,21,2],[20,0,21,0],[20,1,21,1],[20,3,21,3],[26,0,27,0],[26,1,27,1],[26,2,27,2],[26,3,27,3],[22,3,23,3],[22,4,23,4],[26,4,27,4],[24,0,25,0],[24,1,25,1],[24,2,25,2],[24,3,25,3],[24,4,25,4]]}
["NO","SAP MATERIAL NUMBER","ITEM DESCRIPTION","SIZE","UNIT MEASURE","Quantity","Item price","Price"]
[]
["ELECTRICAL GLOVES"]
[1,244598,"GLOVE ELECTRICAL",6,"EA",null,null,{"$f":"SUM(F4*G4)","v":0}]
[2,244599,"GLOVE ELECTRICAL",7,"EA",null,null,{"$f":"SUM(F5*G5)","v":0}]
[3,244600,"GLOVE ELECTRICAL",8,"EA",null,null,0]
[4,244601,"GLOVE ELECTRICAL",9,"EA",null,null,0]
[5,244602,"GLOVE ELECTRICAL",10,"EA",null,null,0]
[6,244603,"GLOVE ELECTRICAL",11,"EA",null,null,0]
[7,244604,"GLOVE ELECTRICAL",12,"EA",null,null,0]
["CHEMICAL GLOVES"]
[8,565280,"CHEMICAL PROTECTIVE GLOVE:TYPE:ACID RESISTANT ;MATERIAL BUTYL PLUS R0.3; COLOUR :BLACK",7,"EA",null,null,{"$f":"SUM(F12*G12)","v":0}]
[null,null,null,null,null,null,null,0]
[9,565281,"CHEMICAL PROTECTIVE GLOVE:TYPE:ACID RESISTANT ;MATERIAL BUTYL PLUS R0.3; COLOUR :BLACK",8,"EA"]
[null,null,null,null,null,null,null,0]
[10,565282,"CHEMICAL PROTECTIVE GLOVE:TYPE:ACID RESISTANT ;MATERIAL BUTYL PLUS R0.3; COLOUR :BLACK",9,"EA"]
[]
[]
[null,null,null,null,null,null,null,0]
["GENERAL PURPOSE GLOVES"]
[11,565283,"GENERAL PURPOSE ULTRA-LIGHTWEIGHT ,MICRO -FOAM NITRILE COATED",6,"EA"]
[null,null,null,null,null,null,null,{"$f":"SUM(F22*G22)","v":0}]
[12,565284,"GENERAL PURPOSE ULTRA-LIGHTWEIGHT ,MICRO -FOAM NITRILE COATED",7,"EA"]
[null,null,null,null,null,null,null,0]
[13,565285,"GENERAL PURPOSE ULTRA-LIGHTWEIGHT ,MICRO -FOAM NITRILE COATED",8,"EA"]
[null,null,null,null,null,null,null,0]
[14,565286,"GENERAL PURPOSE ULTRA-LIGHTWEIGHT ,MICRO -FOAM NITRILE COATED",9,"EA"]
[null,null,null,null,null,null,null,0]
[15,565287,"GENERAL PURPOSE ULTRA-LIGHTWEIGHT ,MICRO -FOAM NITRILE COATED",10,"EA"]
[null,null,null,null,null,null,null,0]
[16,565288,"GENERAL PURPOSE ULTRA-LIGHTWEIGHT ,MICRO -FOAM NITRILE COATED",11,"EA"]
[null,null,null,null,null,null,null,0]
["GENERAL PURPOSE CUT RESISTANCE GLOVES (MAINTENANCE)"]
[17,555011,"LIGHTWEIGHT,CUT-RESISTANT,MICRO-FOAM NITRILE COATED GLOVE,EN388 LEVEL 3 CUT RESISTANCE",6,"EA"]
[]
[null,null,null,null,null,null,null,{"$f":"SUM(F36*G36)","v":0}]
[18,555016,"LIGHTWEIGHT,CUT-RESISTANT,MICRO-FOAM NITRILE COATED GLOVE,EN388 LEVEL 3 CUT RESISTANCE",7,"EA"]
[]
[null,null,null,null,null,null,null,0]
[19,555014,"LIGHTWEIGHT,CUT-RESISTANT,MICRO-FOAM NITRILE COATED GLOVE,EN388 LEVEL 3 CUT RESISTANCE",8,"EA"]
[]
[null,null,null,null,null,null,null,0]
[20,555019,"LIGHTWEIGHT,CUT-RESISTANT,MICRO-FOAM NITRILE COATED GLOVE,EN388 LEVEL 3 CUT RESISTANCE",9,"EA"]
[]
[null,null,null,null,null,null,null,0]
[21,555020,"LIGHTWEIGHT,CUT-RESISTANT,MICRO-FOAM NITRILE COATED GLOVE,EN388 LEVEL 3 CUT RESISTANCE",10,"EA"]
[]
[null,null,null,null,null,null,null,0]
[22,565290,"LIGHTWEIGHT,CUT-RESISTANT,MICRO-FOAM NITRILE COATED GLOVE,EN388 LEVEL 3 CUT RESISTANCE",11,"EA"]
[]
[null,null,null,null,null,null,null,0]
[null,null,null,null,null,{"$f":"SUM(F4:F51)","v":0},0,{"$f":"SUM(H4:H51)","v":0}]

{"sheet":"Hearing Protection","index":17,"n_rows":6,"n_cols":8,"rows_kept":6,"cut":false,"hidden":false,"merged":[[1,2,1,3],[2,2,2,3],[3,2,3,3],[4,2,4,3]]}
["NO","SAP MATERIAL NUMBER","ITEM DESCRIPTION",null,"UNIT MEASURE","Quantity","Item price","Price"]
[1,41050,"PROTECTOR,HEARING EARPLUG 90-102 db",null,"EA",null,null,{"$f":"SUM(F2*G2)","v":0}]
[2,147538,"PROTECTOR,HEARING EARPLUG 96-106 db",null,"EA",null,null,{"$f":"SUM(F3*G3)","v":0}]
[3,41063,"PROTECTOR,HEARING HEADBAND 23db",null,"EA",null,null,{"$f":"SUM(F4*G4)","v":0}]
[4,41168,"PROTECTOR,HEARING EARMUFF CUSHION",null,"EA",null,null,0]
[null,null,null,null,null,{"$f":"SUM(F3:F5)","v":0},0,{"$f":"SUM(H3:H5)","v":0}]

{"sheet":"Respirators","index":18,"n_rows":8,"n_cols":9,"rows_kept":8,"cut":false,"hidden":false,"merged":[[5,2,5,3],[6,2,6,3],[0,7,1,7],[0,8,1,8],[0,0,1,0],[0,1,1,1],[0,2,1,3],[0,4,1,4],[0,5,1,5]]}
["NO","SAP MATERIAL NUMBER","ITEM DESCRIPTION",null,"SIZE","UNIT MEASURE","Quantity","Item price","Price"]
[]
[1,566738,"DUST MASK FFP2 WITH VALVE",null,"ONE SIZE FITS ALL","EA",null,null,{"$f":"SUM(G3*H3)","v":0}]
[2,566739,"DUST MASK FFP2 WITHOUT VALVE",null,"ONE SIZE FITS ALL","EA",null,null,{"$f":"SUM(G4*H4)","v":0}]
[3,566740,"DUST MASK FFP3 WITH VALVE",null,"ONE SIZE FITS ALL","EA",null,null,0]
[null,null,"Dust musk",null,"ONE SIZE FITS ALL","EA",null,null,0]
[null,null,"dust musks (box of 20)",null,"ONE SIZE FITS ALL","EA",null,null,0]
[null,null,null,null,null,null,{"$f":"SUM(G3:G7)","v":0},{"$f":"SUM(H3:H7)","v":0},0]

{"sheet":"Summary","index":19,"n_rows":25,"n_cols":4,"rows_kept":25,"cut":false,"hidden":false,"merged":[[0,0,0,1],[0,2,0,3]]}
[null,null,"Summary"]
["No","Item","Item","Price (R)"]
[1,"SATETY BOOTS/SHOES AND GUMBOOTS",{"$f":"'Safety Boots'!G63","v":0},{"$f":"'Safety Boots'!I63","v":0}]
[2,"SOCKS",{"$f":"Socks!F9","v":0},{"$f":"Socks!H9","v":0}]
[3,"GLOVES",{"$f":"Gloves!F52","v":0},{"$f":"Gloves!H52","v":0}]
[4,"HEARING PROTECTION",{"$f":"'Hearing Protection'!F6","v":0},{"$f":"'Hearing Protection'!H6","v":0}]
[5,"RESPIRATORS",{"$f":"Respirators!G8","v":0},{"$f":"Respirators!I8","v":0}]
[6,"Safety Equipment",{"$f":"'Safety Equip'!E16","v":0},{"$f":"'Safety Equip'!G16","v":0}]
[7,"ONE PIECE OVERALL",{"$f":"'1Piece Overall'!E61","v":0},{"$f":"'1Piece Overall'!G61","v":0}]
[8,"TWO PIECE OVERALL",{"$f":"'2Piece Overall'!E153","v":0},{"$f":"'2Piece Overall'!G153","v":0}]
[9,"THERMAL JACKETS",{"$f":"'Thermal Jackets'!E14","v":0},{"$f":"'Thermal Jackets'!G14","v":0}]
[10,"DUST COATS",{"$f":"'Dust Coats'!E13","v":0},{"$f":"'Dust Coats'!G13","v":0}]
[11,"SHIRTS (MEN/WOMEN)",{"$f":"Shirts!E61","v":0},{"$f":"Shirts!G61","v":0}]
[12,"HEAD PROTECTION",{"$f":"'Head Protection'!E11","v":0},{"$f":"'Head Protection'!G11","v":0}]
[13,"RAIN WEAR",{"$f":"'Rain Wear'!E10","v":0},{"$f":"'Rain Wear'!G10","v":0}]
[14,"REFLECTIVE VESTS",{"$f":"'Reflective Vests'!F58","v":0},{"$f":"'Reflective Vests'!H58","v":0}]
[15,"EYE PROTECTION",{"$f":"'Eye Protection'!E11","v":0},{"$f":"'Eye Protection'!G11","v":0}]
[16,"SUN BLOCK",{"$f":"'Sun Block'!$E$15","v":0},{"$f":"'Sun Block'!$G$15","v":0}]
[null,null,{"$f":"SUM(C3:C17)","v":0},{"$f":"SUM(D3:D18)","v":0}]
[null,null,"Vat",{"$f":"SUM(D19*15%)","v":0}]
[null,null,"Total",{"$f":"SUM(D19:D20)","v":0}]
[]
[null,null,0.15,{"$f":"SUM(D19*15%)","v":0}]
[null,null,"Total",{"$f":"SUM(D19+D23)","v":0}]
[null,null,"Budget / year",{"$f":"SUM(D23:D24)","v":0}]

{"sheet":"CPA FORMULA","index":20,"n_rows":39,"n_cols":13,"rows_kept":39,"cut":false,"hidden":false,"merged":[[19,1,19,10],[9,1,9,6],[10,1,10,6],[13,1,13,10],[6,2,6,4],[14,1,14,10],[15,1,15,10],[16,1,16,10],[17,1,17,10],[18,1,18,10],[30,1,30,6],[22,1,22,6],[23,1,23,6],[24,1,24,6],[25,1,25,6],[26,1,26,6],[35,7,35,8],[36,7,36,8],[30,7,30,8],[31,7,31,8],[32,7,32,8],[33,7,33,8],[34,7,34,8]]}
["Enquiry No."]
["Tenderer's Name:"]
[]
[" CONTRACT PRICE ADJUSTMENT (CPA) FOR INFLATION"]
[]
["No.","Formula Code","Summary of the description of the Tenderer's Formulae"]
[1,"A",{"$f":"B31","v":"Tenderer's description of Formula A"}]
[]
["SPECIFIC REQUIREMENTS"]
[1,"The tenderers are to fully comply with the requirements in the General Notes and CPA Formulae Notes below."]
[2,"No deviations from the Notes below are to be included.  ALTERNATIVE offers are not accepted."]
[]
["GENERAL NOTES :"]
[1,"References to \"indices\" below mean \"cost indices or reference prices\"."]
[2,"Where 5 year historical information must be provided as instructed below, internet address references which are accessible to the general public may be submitted by the Tenderer instead, with the specific electronic route and web page reflecting the applicable data."]
[3,"Each formula is related to  a ZAR currency. Each formula must add up to 100% total weight."]
[4,"Manual input required"]
[5,"This GREY - PLEASE REFRAIN from tampering with ANY other cells contained in this workbook as it may affect Eskom's standard formulae and lead to data integrity issues."]
[6,"The pricing schedule may not be changed or altered. Tenderer(s) to populate prices for the quantities specified in the pricing schedule in the columns."]
[7,"Dark Green highlighted cells are formulae based and do not require any inputs."]
[]
["CPA FORMULA NOTES :"]
[1,"Proportions/weightings in CPA Formulae: The fixed portion of each formula, not subject to CPA, must be at least 15% but Tenderers may submit higher fixed portion percentages.  The other constituent indices and their proportions in each formula must be realistic and relative to the applicable work. The fixed portion and other proportions must add up to 100%.   "]
[2,"Formulae must be linked to independent cost indices or other benchmarks (\"reference prices\") and must be clearly and completely defined. The source must be a recognised and independent statistical publishing organisation.  The Tenderers' in-house indices may not be used."]
[3,"Local Price CPA: Where local indices other than those published by SEIFSA or Statistics SA are specified, the Tenderer must submit 5 years' of month by month historical data for such indices.  The Tenderer must ensure that indices are published and recommended by the source thereof as applicable to the work involved and that they are still in force/use and applicable at the date of submission of the tender. "]
[4,"CPA Base Date: The CPA base date for calculating price movements will be the Base Date, Month before Tender closes. For indices or reference prices published as at certain dates, and where such a date is not the Base Date, the latest date for which it is published before the Base Date will be considered as the Base Date index or reference price.  In instances where the figure or value is not as at the Base Date or considered as the Base Date Index or reference price as explained herein, the date, figure or value as well as the reason for the deviation must be clearly separately stated and must be realistic for purposes of CPA.  ",null,null,null,null,null,null,null,null,null,null," "]
[5,"Base Date Index :   The base index or reference price must be inserted in the appropriate column."]
[" "," "]
[]
[]
["Formula A","Tenderer's description of Formula A"]
["Index Ref.","Proportions / weightings for each index (refer note 1)","Description / scope of index (e.g. Labour)","Full title/definition of index as per publisher","Source/publisher of index (e.g. SEIFSA, StatsSA, LME)","Base Month for CPA if not Base Date as defined (refer note 4)","Base Date Index (refer note 5)","Historical data provided (Yes or No- provide http link)"]
["A1"]
["A2"]
["A3"]
["A4"]
["A5"]
["A6",15,"Fixed 15% minimum not subject to CPA "]
[null,{"$f":"SUM(B33:B38)","v":15},"Total","Total Must add up to 100%"]